bitfinex/quotes_BTCUSD_20250620
["timestamp","ask_amount","ask_price","bid_price","bid_amount"]
[1750443447474,4.12410293,103330.0,103320.0,1.90393499]
[1750443448543,3.89656941,103330.0,103320.0,1.90393499]
[1750443448950,3.89656941,103330.0,103320.0,1.26659717]
[1750443449152,3.89656941,103330.0,103320.0,1.90393499]
[1750443451191,3.89656941,103330.0,103320.0,1.93299199]
[1750443452695,3.89656941,103330.0,103320.0,1.29565417]
[1750443452902,3.89656941,103330.0,103320.0,1.93299199]
[1750443453536,3.89656941,103330.0,103320.0,1.85442222]
[1750443458201,3.89656941,103330.0,103320.0,1.62982222]
[1750443458434,3.89656941,103330.0,103320.0,1.85410222]
[1750443459094,3.89656941,103330.0,103320.0,2.23678092]
[1750443459978,3.89656941,103330.0,103320.0,2.74678918]
[1750443460191,3.29904017,103330.0,103320.0,2.84878918]
[1750443460453,3.23844478,103330.0,103320.0,2.84878918]
[1750443460665,3.18036528,103330.0,103320.0,2.84878918]
[1750443460894,3.13196569,103330.0,103320.0,2.84878918]
[1750443461126,3.13196569,103330.0,103320.0,2.33878092]
[1750443461127,3.07388619,103330.0,103320.0,2.33878092]
[1750443461350,0.30323968,103330.0,103320.0,2.33578092]
[1750443461562,0.30323968,103330.0,103320.0,2.23878092]
[1750443461788,0.30323968,103330.0,103320.0,1.2187644]
[1750443462001,0.30323968,103330.0,103320.0,1.2107644]
[1750443462216,0.30323968,103330.0,103320.0,2.23078092]
[1750443462404,0.30323968,103330.0,103320.0,2.24278092]
[1750443462852,0.30323968,103330.0,103320.0,2.23778092]
[1750443463265,0.30323968,103330.0,103320.0,2.24378092]
[1750443463694,0.29355977,103330.0,103320.0,2.24378092]
[1750443464112,0.28387986,103330.0,103320.0,2.24378092]
[1750443464536,0.27419995,103330.0,103320.0,2.24378092]
[1750443464966,0.26452004,103330.0,103320.0,2.24378092]
[1750443465407,0.25484013,103330.0,103320.0,2.24378092]
[1750443465628,0.24516022,103330.0,103320.0,2.24378092]
[1750443466068,0.2354825,103330.0,103320.0,2.24341888]
[1750443466484,0.22580478,103330.0,103320.0,2.24341888]
[1750443466870,0.21612706,103330.0,103320.0,2.01913888]
[1750443467101,0.21612706,103330.0,103320.0,2.24289888]
[1750443467313,0.20644934,103330.0,103320.0,2.24289888]
[1750443467736,0.19677162,103330.0,103320.0,2.24289888]
[1750443468182,0.13680038,103330.0,103320.0,2.24289888]
[1750443468397,0.30697228,103340.0,103330.0,1.32825753]
[1750443468631,0.27893228,103340.0,103330.0,2.79387124]
[1750443468847,0.26925456,103340.0,103330.0,3.04387124]
[1750443469308,0.0138114,103380.0,103370.0,0.23704141]
[1750443469512,0.0138114,103380.0,103370.0,0.46403866]
[1750443469725,0.01428186,103380.0,103370.0,1.00288673]
[1750443470596,0.01428186,103380.0,103370.0,0.49305949]
[1750443471020,0.01543186,103380.0,103370.0,0.49305949]
[1750443471240,0.01543186,103380.0,103370.0,1.00288673]
[1750443471447,0.01643186,103380.0,103370.0,1.01942758]
[1750443472295,0.04643186,103380.0,103370.0,1.01942758]
[1750443472718,0.04643186,103380.0,103370.0,0.50960034]
[1750443472925,0.04643186,103380.0,103370.0,1.01942758]
[1750443473394,0.04643186,103380.0,103370.0,0.33432034]
[1750443473627,0.5562591,103380.0,103370.0,0.31977949]
[1750443473889,1.41121493,103380.0,103370.0,0.49501949]
[1750443474090,1.46121493,103380.0,103370.0,0.49501949]
[1750443474295,0.95138769,103380.0,103370.0,0.49501949]
[1750443474938,0.44156045,103380.0,103370.0,0.49501949]
[1750443475160,1.07895429,103380.0,103370.0,0.49501949]
[1750443475380,0.38643186,103380.0,103370.0,0.49501949]
[1750443476020,0.38643186,103380.0,103370.0,0.50956034]
[1750443478914,0.38643186,103380.0,103370.0,0.33432034]
[1750443479121,1.0238257,103380.0,103370.0,0.50956034]
[1750443480225,0.38643186,103380.0,103370.0,0.50956034]
[1750443480456,1.0238257,103380.0,103370.0,0.50956034]
[1750443480649,1.0238257,103380.0,103370.0,0.33432034]
[1750443480844,1.0238257,103380.0,103370.0,0.50956034]
[1750443483425,0.38643186,103380.0,103370.0,0.50956034]
[1750443484181,0.38643186,103380.0,103370.0,0.50952034]
[1750443484998,0.04528186,103380.0,103370.0,0.58809011]
[1750443485214,0.01528186,103380.0,103370.0,0.58930011]
[1750443485855,0.00147046,103380.0,103370.0,0.83717572]
[1750443486056,0.00147046,103380.0,103370.0,0.90945677]
[1750443486261,0.03237046,103380.0,103370.0,0.71454536]
[1750443488179,0.06417046,103380.0,103370.0,0.71454536]
[1750443488725,0.06417046,103380.0,103370.0,0.76298536]
[1750443488943,0.03237046,103380.0,103370.0,0.76298536]
[1750443489590,0.05917046,103380.0,103370.0,0.45960559]
[1750443489765,0.00124,103390.0,103380.0,0.22247902]
[1750443489990,0.97868085,103390.0,103380.0,0.31775795]
[1750443490978,0.34128701,103390.0,103380.0,0.31775795]
[1750443491189,0.97868085,103390.0,103380.0,0.31775795]
[1750443491621,0.97868085,103390.0,103380.0,0.49291795]
[1750443491622,1.03380944,103390.0,103380.0,0.49291795]
[1750443492492,0.98380944,103390.0,103380.0,0.49291795]
[1750443492698,1.09770944,103390.0,103380.0,0.49291795]
[1750443493761,1.09770944,103390.0,103380.0,0.49301795]
[1750443494384,0.4603156,103390.0,103380.0,0.49301795]
[1750443494588,1.09770944,103390.0,103380.0,0.49301795]
[1750443495038,0.97012863,103390.0,103380.0,0.49301795]
[1750443495450,0.97012863,103390.0,103380.0,0.31785795]
[1750443495679,0.97012863,103390.0,103380.0,0.49297795]
[1750443497236,0.4603156,103390.0,103380.0,0.49297795]
[1750443497447,0.97012863,103390.0,103380.0,0.49297795]
[1750443497655,0.4603156,103390.0,103380.0,0.49297795]
[1750443497833,0.92012863,103390.0,103380.0,0.31785795]
[1750443498085,0.92012863,103390.0,103380.0,0.49297795]
[1750443498301,0.92012863,103390.0,103380.0,0.31785795]
[1750443498545,0.97012863,103390.0,103380.0,0.49297795]
[1750443498756,0.97012863,103390.0,103380.0,0.31785795]
[1750443498965,0.97012863,103390.0,103380.0,0.49297795]
[1750443499416,0.9991431,103390.0,103380.0,0.31785795]
[1750443499621,1.72174256,103390.0,103380.0,0.39769921]
[1750443499852,1.52830026,103390.0,103380.0,0.40737169]
[1750443500106,1.72174256,103390.0,103380.0,0.40737169]
[1750443500330,0.69244523,103390.0,103380.0,0.22257921]
[1750443500532,1.71207129,103390.0,103380.0,0.22257921]
[1750443500748,1.71207129,103390.0,103380.0,0.39769921]
[1750443500969,1.47994166,103390.0,103380.0,0.39769921]
[1750443501203,0.97012863,103390.0,103380.0,0.50265053]
[1750443501407,0.98947154,103390.0,103380.0,0.50265053]
[1750443501616,0.97979999,103390.0,103380.0,0.50265053]
[1750443501820,0.97012863,103390.0,103380.0,0.50265053]
[1750443502688,0.92012863,103390.0,103380.0,0.50265053]
[1750443502879,0.97012863,103390.0,103380.0,0.50265053]
[1750443503330,0.96500004,103390.0,103380.0,0.50265053]
[1750443503533,0.91500004,103390.0,103380.0,0.50265053]
[1750443503742,0.96500004,103390.0,103380.0,0.50265053]
[1750443503949,0.91500004,103390.0,103380.0,0.50261053]
[1750443504083,0.96500004,103390.0,103380.0,0.50261053]
[1750443505670,0.91500004,103390.0,103380.0,0.50261053]
[1750443505879,0.45518701,103390.0,103380.0,0.50261053]
[1750443506121,0.96500004,103390.0,103380.0,0.50261053]
[1750443507730,0.91500004,103390.0,103380.0,0.50261053]
[1750443508335,0.45518701,103390.0,103380.0,0.50261053]
[1750443508543,0.40518701,103390.0,103380.0,0.50261053]
[1750443508773,0.91500004,103390.0,103380.0,0.50261053]
[1750443509141,0.40394701,103390.0,103380.0,0.50261053]
[1750443509410,0.53887216,103410.0,103390.0,0.31454085]
[1750443509411,5e-05,103410.0,103390.0,0.31454085]
[1750443509607,5e-05,103410.0,103400.0,0.77025239]
[1750443509937,5e-05,103410.0,103400.0,1.37447933]
[1750443510334,5e-05,103410.0,103400.0,0.6412663]
[1750443510533,5e-05,103410.0,103400.0,1.40351433]
[1750443510923,5e-05,103410.0,103400.0,0.8937013]
[1750443511348,5e-05,103410.0,103400.0,0.8327013]
[1750443512122,5e-05,103410.0,103400.0,0.8367013]
[1750443512318,5e-05,103410.0,103400.0,0.8397013]
[1750443513122,5e-05,103410.0,103400.0,1.61713097]
[1750443513500,5e-05,103410.0,103400.0,1.95713097]
[1750443513894,5e-05,103410.0,103400.0,1.32057375]
[1750443514038,5e-05,103410.0,103400.0,1.95713097]
[1750443514663,5e-05,103410.0,103400.0,1.80709097]
[1750443514854,5e-05,103410.0,103400.0,1.17053375]
[1750443515276,5e-05,103430.0,103420.0,0.23693383]
[1750443515576,0.00136096,103430.0,103420.0,0.50721276]
[1750443516403,0.00136096,103430.0,103420.0,0.50717276]
[1750443516819,0.00019096,103430.0,103420.0,0.50717276]
[1750443517230,0.00019096,103430.0,103420.0,0.33221276]
[1750443517567,0.00019096,103430.0,103420.0,0.50717276]
[1750443517761,0.03286096,103430.0,103420.0,0.50717276]
[1750443518162,0.03586096,103430.0,103420.0,0.50717276]
[1750443519003,0.03286096,103430.0,103420.0,0.50717276]
[1750443519204,0.03169096,103430.0,103420.0,0.50717276]
[1750443519404,0.03269096,103430.0,103420.0,0.50917276]
[1750443520040,0.00119096,103430.0,103420.0,0.50835276]
[1750443520252,0.06307,103440.0,103430.0,0.23691234]
[1750443520458,0.06307,103440.0,103430.0,0.33219127]
[1750443521945,0.06407,103440.0,103430.0,0.33219127]
[1750443522352,0.06407,103440.0,103430.0,0.33419127]
[1750443523738,0.0629,103440.0,103430.0,0.41191022]
[1750443523948,0.001,103440.0,103430.0,0.41309022]
[1750443524150,0.001,103440.0,103430.0,0.41191022]
[1750443524358,0.06717,103440.0,103430.0,0.50907127]
[1750443524594,0.70372722,103440.0,103430.0,0.33419127]
[1750443524798,0.70372722,103440.0,103430.0,0.50907127]
[1750443525213,0.70372722,103440.0,103430.0,0.36329553]
[1750443525420,0.70372722,103440.0,103430.0,0.53817553]
[1750443526246,1.04885581,103440.0,103430.0,0.49453042]
[1750443526822,1.04885581,103440.0,103430.0,0.31965042]
[1750443526975,1.04885581,103440.0,103430.0,0.49453042]
[1750443527185,1.04885581,103440.0,103430.0,0.31965042]
[1750443527388,1.04885581,103440.0,103430.0,0.49453042]
[1750443528384,1.85001654,103440.0,103430.0,0.20503577]
[1750443528594,2.10131305,103440.0,103430.0,0.20503586]
[1750443528809,2.09164608,103440.0,103430.0,0.002]
[1750443529018,2.08197902,103440.0,103430.0,0.002]
[1750443529238,0.08503571,103430.0,103420.0,0.40690135]
[1750443529447,0.74209883,103430.0,103420.0,0.40690135]
[1750443529866,0.79209883,103430.0,103420.0,0.40690135]
[1750443530323,0.79209827,103430.0,103420.0,0.40690135]
[1750443530528,0.80176636,103430.0,103420.0,0.40690135]
[1750443530948,0.97125957,103430.0,103420.0,0.38756433]
[1750443531167,0.97125957,103430.0,103420.0,0.2030554]
[1750443531369,0.97125957,103430.0,103420.0,0.21272452]
[1750443531370,1.14609957,103430.0,103420.0,0.21272452]
[1750443531577,1.14709957,103430.0,103420.0,0.22239382]
[1750443532024,1.14709957,103430.0,103420.0,0.22339382]
[1750443532398,1.14609957,103430.0,103420.0,0.22239382]
[1750443532695,1.14609957,103430.0,103420.0,0.23206275]
[1750443532871,1.14609957,103430.0,103420.0,0.23306275]
[1750443533074,0.50954235,103430.0,103420.0,0.24273159]
[1750443533273,0.96240036,103430.0,103420.0,0.24273094]
[1750443533495,0.98092785,103430.0,103420.0,0.24273094]
[1750443533641,0.77789171,103430.0,103420.0,0.24273094]
[1750443534216,0.78855905,103430.0,103420.0,0.24273094]
[1750443534555,0.12299859,103430.0,103420.0,0.32044989]
[1750443534782,0.75783581,103430.0,103420.0,0.41572882]
[1750443535173,0.80783581,103430.0,103420.0,0.41572882]
[1750443537093,0.75955581,103430.0,103420.0,0.41572882]
[1750443538339,0.70955581,103430.0,103420.0,0.41572882]
[1750443538479,0.75955581,103430.0,103420.0,0.41572882]
[1750443538908,0.75955581,103430.0,103420.0,0.59052882]
[1750443540558,0.76922334,103430.0,103420.0,0.51280987]
[1750443540758,0.77889096,103430.0,103420.0,0.41753094]
[1750443541068,0.80789505,103430.0,103420.0,0.19438619]
[1750443541268,0.7885599,103430.0,103420.0,0.37885549]
[1750443541473,0.7885599,103430.0,103420.0,0.21372451]
[1750443541673,0.77889162,103430.0,103420.0,0.21372451]
[1750443541995,0.77889162,103430.0,103420.0,0.23306209]
[1750443541996,0.79822808,103430.0,103420.0,0.23306209]
[1750443542197,0.60544738,103430.0,103420.0,0.23306209]
[1750443542404,0.60544738,103430.0,103420.0,0.22339335]
[1750443542600,0.79881487,103430.0,103420.0,0.22339344]
[1750443543034,0.78914706,103430.0,103420.0,0.21372461]
[1750443543234,0.78914706,103430.0,103420.0,0.23306256]
[1750443543435,0.78914706,103430.0,103420.0,0.2427314]
[1750443543644,0.59577957,103430.0,103420.0,0.23306256]
[1750443543846,0.59577948,103430.0,103420.0,0.2427314]
[1750443544073,0.5861112,103430.0,103420.0,0.24273084]
[1750443544236,0.56796511,103430.0,103420.0,0.24273037]
[1750443544445,0.59696798,103430.0,103420.0,0.24273037]
[1750443544649,0.60663579,103430.0,103420.0,0.24273037]
[1750443545018,0.59696798,103430.0,103420.0,0.24273037]
[1750443545264,0.64980026,103430.0,103420.0,0.24273037]
[1750443545501,0.69905722,103430.0,103420.0,0.41572825]
[1750443545835,0.74905722,103430.0,103420.0,0.41572825]
[1750443546254,0.75024722,103430.0,103420.0,0.41572825]
[1750443547460,0.75024722,103430.0,103420.0,0.3380093]
[1750443547883,0.69741475,103430.0,103420.0,0.3380093]
[1750443548097,0.71675018,103430.0,103420.0,0.41749037]
[1750443548301,0.72641818,103430.0,103420.0,0.41749037]
[1750443548501,0.92945469,103430.0,103420.0,0.37881531]
[1750443548706,1.02472454,103430.0,103420.0,0.36914619]
[1750443548921,1.02472454,103430.0,103420.0,0.19438619]
[1750443548922,1.00538911,103430.0,103420.0,0.19438619]
[1750443549147,1.33572111,103430.0,103420.0,0.19438619]
[1750443549356,1.33572111,103430.0,103420.0,0.20405549]
[1750443549561,1.33572111,103430.0,103420.0,0.19438619]
[1750443549787,1.32605293,103430.0,103420.0,0.001]
[1750443549983,1.04708293,103430.0,103420.0,0.22339298]
[1750443550187,1.25806651,103430.0,103420.0,0.22339317]
[1750443550409,1.30806651,103430.0,103420.0,0.2040554]
[1750443550621,1.30806651,103430.0,103420.0,0.21339335]
[1750443550837,1.36986651,103430.0,103420.0,0.21339335]
[1750443551076,1.36019898,103430.0,103420.0,0.21339335]
[1750443551281,1.45546883,103430.0,103420.0,0.18438619]
[1750443551484,1.43613293,103430.0,103420.0,0.19405549]
[1750443551870,1.43613293,103430.0,103420.0,0.20372461]
[1750443552074,1.43613293,103430.0,103420.0,0.19405549]
[1750443552290,0.12246884,103420.0,103410.0,0.38744751]
[1750443552483,1.31347456,103430.0,103420.0,0.22239298]
[1750443552484,0.4017,103430.0,103420.0,0.22239298]
[1750443552677,1.04528274,103430.0,103420.0,0.22239298]
[1750443552878,1.09528265,103430.0,103420.0,0.22239298]
[1750443553235,0.97655722,103430.0,103420.0,0.22239298]
[1750443553817,0.97655722,103430.0,103420.0,0.39617086]
[1750443554051,0.97655722,103430.0,103420.0,0.42617086]
[1750443554252,1.02655722,103430.0,103420.0,0.42617086]
[1750443554453,0.34,103430.0,103420.0,0.42617086]
[1750443554626,0.97655722,103430.0,103420.0,0.42617086]
[1750443554957,1.02655722,103430.0,103420.0,0.34845191]
[1750443555175,0.97655722,103430.0,103420.0,0.31867191]
[1750443555383,1.02655722,103430.0,103420.0,0.31867191]
[1750443556245,1.02655722,103430.0,103420.0,0.46159086]
[1750443556246,0.39,103430.0,103420.0,0.46159086]
[1750443556457,1.02655722,103430.0,103420.0,0.46279086]
[1750443557082,1.02655722,103430.0,103420.0,0.46179086]
[1750443557286,1.02755722,103430.0,103420.0,0.46179086]
[1750443557933,0.341,103430.0,103420.0,0.46179086]
[1750443558138,0.97755722,103430.0,103420.0,0.46179086]
[1750443558348,0.391,103430.0,103420.0,0.46179086]
[1750443559012,0.391,103430.0,103420.0,0.63647086]
[1750443559574,0.341,103430.0,103420.0,0.63647086]
[1750443559752,1.02755722,103430.0,103420.0,0.63647086]
[1750443560256,0.97755722,103430.0,103420.0,0.63647086]
[1750443561355,0.33844,103430.0,103420.0,0.63647086]
[1750443562827,0.84776909,103430.0,103420.0,0.65101171]
[1750443564105,0.33844,103430.0,103420.0,0.65101171]
[1750443564521,0.001,103430.0,103420.0,0.65101171]
[1750443565456,0.34,103440.0,103430.0,0.22237149]
[1750443565657,0.84932909,103440.0,103430.0,0.38265042]
[1750443565896,0.84932909,103440.0,103430.0,0.38343042]
[1750443566661,0.84932909,103440.0,103430.0,0.39797127]
[1750443566862,0.34123,103460.0,103450.0,0.2223285]
[1750443567062,0.85055909,103460.0,103450.0,0.3969285]
[1750443567477,0.90055909,103460.0,103450.0,0.3969285]
[1750443567777,0.91988873,103460.0,103450.0,0.3969285]
[1750443568008,0.91022382,103460.0,103450.0,0.3969285]
[1750443568217,0.91988864,103460.0,103450.0,0.3969285]
[1750443568415,0.86022382,103460.0,103450.0,0.3979285]
[1750443568618,0.85055909,103460.0,103450.0,0.3979285]
[1750443570121,0.85055909,103460.0,103450.0,0.3980285]
[1750443570588,0.89932909,103460.0,103450.0,0.49330743]
[1750443570800,0.98403878,103470.0,103460.0,0.22230699]
[1750443571008,1.03520879,103470.0,103460.0,0.20297689]
[1750443571221,1.01587999,103470.0,103460.0,0.2319721]
[1750443571424,1.02554416,103470.0,103460.0,0.2319721]
[1750443571635,0.96485194,103470.0,103460.0,0.2319721]
[1750443571855,0.94311582,103470.0,103460.0,0.2319721]
[1750443572063,1.40244491,103470.0,103460.0,0.39682719]
[1750443572267,1.52390908,103470.0,103460.0,0.4064921]
[1750443572495,1.52508908,103470.0,103460.0,0.4064921]
[1750443572708,1.53475343,103470.0,103460.0,0.4064921]
[1750443572913,1.52508898,103470.0,103460.0,0.4064921]
[1750443573125,1.51720491,103470.0,103460.0,0.4064921]
[1750443573331,1.58269353,103470.0,103460.0,0.39682719]
[1750443573542,1.58269353,103470.0,103460.0,0.4074921]
[1750443573744,1.53269353,103470.0,103460.0,0.4074921]
[1750443573966,1.58269353,103470.0,103460.0,0.4074921]
[1750443574401,1.58269353,103470.0,103460.0,0.39782719]
[1750443574580,1.57302908,103470.0,103460.0,0.4075921]
[1750443574790,1.54132908,103470.0,103460.0,0.4075921]
[1750443574995,1.51122898,103470.0,103460.0,0.4075921]
[1750443575409,1.52089324,103470.0,103460.0,0.4075921]
[1750443575552,1.56065769,103470.0,103460.0,0.39792719]
[1750443575776,1.56065769,103470.0,103460.0,0.38826218]
[1750443575982,1.78465043,103470.0,103460.0,0.38818218]
[1750443576749,1.77498655,103470.0,103460.0,0.38818227]
[1750443576986,1.71716248,103470.0,103460.0,0.0011]
[1750443577194,1.76532248,103470.0,103460.0,0.19441142]
[1750443577397,1.76532248,103470.0,103460.0,0.21374237]
[1750443577585,1.76532248,103470.0,103460.0,0.21374246]
[1750443577816,1.76532248,103470.0,103460.0,0.21274246]
[1750443578018,1.76532248,103470.0,103460.0,0.20307699]
[1750443578231,1.76532248,103470.0,103460.0,0.21274246]
[1750443578448,1.52386927,103470.0,103460.0,0.21274246]
[1750443578684,1.55099362,103470.0,103460.0,0.23207256]
[1750443578885,1.51122927,103470.0,103460.0,0.23207256]
[1750443579363,1.52089372,103470.0,103460.0,0.23207256]
[1750443579614,1.53055835,103470.0,103460.0,0.23207275]
[1750443579832,1.72385109,103470.0,103460.0,0.23207275]
[1750443580093,1.725851,103470.0,103460.0,0.23207275]
[1750443580330,1.725851,103470.0,103460.0,0.0001]
[1750443580331,1.723851,103470.0,103460.0,0.0001]
[1750443580551,1.76978582,103470.0,103460.0,0.0011]
[1750443580785,1.76832276,103470.0,103460.0,0.20407699]
[1750443581002,1.55101419,103470.0,103460.0,0.22340729]
[1750443581226,1.51122965,103470.0,103460.0,0.22340729]
[1750443581456,1.74678693,103470.0,103460.0,0.23307257]
[1750443581683,1.55231419,103470.0,103460.0,0.24273758]
[1750443581923,1.52171419,103470.0,103460.0,0.23207257]
[1750443582154,1.52171353,103470.0,103460.0,0.31945643]
[1750443582403,0.48372673,103470.0,103460.0,0.31945643]
[1750443582650,0.05214093,103470.0,103460.0,0.61949536]
[1750443582898,0.56147002,103470.0,103460.0,0.65135536]
[1750443583640,0.55947002,103470.0,103460.0,0.65135536]
[1750443583921,0.89947002,103470.0,103460.0,0.65135536]
[1750443584325,0.89947002,103470.0,103460.0,0.65235536]
[1750443585004,0.39014093,103470.0,103460.0,0.65235536]
[1750443585225,0.34014093,103470.0,103460.0,0.66689621]
[1750443585685,0.00014093,103470.0,103460.0,0.66689621]
[1750443587990,0.00014093,103470.0,103460.0,0.76372674]
[1750443588482,0.00014093,103470.0,103460.0,0.81164674]
[1750443588695,0.6363191,103470.0,103460.0,0.57451641]
[1750443589453,0.6363191,103470.0,103460.0,0.40027641]
[1750443589640,0.6363191,103470.0,103460.0,0.54265641]
[1750443589834,0.6363191,103470.0,103460.0,0.54165641]
[1750443590269,0.6363191,103470.0,103460.0,0.36841641]
[1750443590442,0.6363191,103470.0,103460.0,0.54365641]
[1750443590643,0.6363191,103470.0,103460.0,0.54265641]
[1750443590866,0.6363191,103470.0,103460.0,0.54281641]
[1750443591041,0.6373191,103470.0,103460.0,0.54281641]
[1750443591471,0.00114093,103470.0,103460.0,0.54281641]
[1750443591687,0.00114093,103470.0,103460.0,0.57341641]
[1750443591893,0.00114093,103470.0,103460.0,0.65198618]
[1750443592308,0.00114093,103470.0,103460.0,0.65194618]
[1750443592516,0.6373191,103470.0,103460.0,0.33701641]
[1750443592726,0.34114093,103470.0,103460.0,0.51121641]
[1750443592942,0.34114093,103470.0,103460.0,0.54537641]
[1750443593146,0.00114093,103470.0,103460.0,0.59051726]
[1750443593778,0.00014093,103470.0,103460.0,0.59051726]
[1750443594160,0.00014093,103470.0,103460.0,0.59351726]
[1750443594543,0.00014093,103470.0,103460.0,0.59151726]
[1750443594951,0.00014093,103470.0,103460.0,0.81306674]
[1750443595148,0.00014093,103470.0,103460.0,0.81302674]
[1750443595550,0.00014093,103470.0,103460.0,0.59086674]
[1750443595754,0.00014093,103470.0,103460.0,0.81302674]
[1750443596309,0.00114093,103470.0,103460.0,0.81302674]
[1750443596476,0.00114093,103470.0,103460.0,0.73526779]
[1750443597475,0.00014093,103470.0,103460.0,0.73526779]
[1750443597674,0.00014093,103470.0,103460.0,0.73626779]
[1750443597902,0.00014093,103470.0,103460.0,0.73726779]
[1750443600668,0.00014093,103470.0,103460.0,0.81498674]
[1750443601121,0.00014093,103470.0,103460.0,1.35433438]
[1750443601738,0.00014093,103470.0,103460.0,1.27661543]
[1750443602799,0.00014093,103470.0,103460.0,0.64043726]
[1750443603831,0.00014093,103470.0,103460.0,0.41831726]
[1750443604251,0.00014093,103470.0,103460.0,0.64031726]
[1750443607188,0.00014093,103470.0,103460.0,1.27649543]
[1750443608019,0.00014093,103470.0,103460.0,1.57509543]
[1750443608801,0.00014093,103470.0,103460.0,0.93891726]
[1750443610323,0.00014093,103470.0,103460.0,0.93883726]
[1750443610526,0.00014093,103470.0,103460.0,0.71691726]
[1750443610735,0.00014093,103470.0,103460.0,0.93883726]
[1750443612162,0.00014093,103470.0,103460.0,0.65215726]
[1750443612365,0.6677191,103470.0,103460.0,0.81153641]
[1750443612613,0.00014093,103470.0,103460.0,0.81153641]
[1750443612823,0.00014093,103470.0,103460.0,0.82607726]
[1750443613034,0.00014093,103470.0,103460.0,0.82723726]
[1750443613859,0.00014093,103470.0,103460.0,0.52863726]
[1750443615412,0.00014093,103470.0,103460.0,0.35471726]
[1750443615619,0.00014093,103470.0,103460.0,0.52743726]
[1750443616133,0.00014093,103470.0,103460.0,0.51289641]
[1750443616342,0.6683191,103470.0,103460.0,0.33901641]
[1750443616541,1.0386191,103470.0,103460.0,0.33901641]
[1750443616748,1.04828289,103470.0,103460.0,0.51289641]
[1750443616888,1.0886191,103470.0,103460.0,0.51289641]
[1750443617081,1.0386191,103470.0,103460.0,0.33901641]
[1750443617364,1.0886191,103470.0,103460.0,0.51185641]
[1750443617576,1.0886191,103470.0,103460.0,0.51085641]
[1750443618605,1.0386191,103470.0,103460.0,0.51085641]
[1750443618925,0.45124093,103470.0,103460.0,0.51085641]
[1750443619135,0.39014093,103470.0,103460.0,0.51085641]
[1750443619468,0.39134093,103470.0,103460.0,0.51085641]
[1750443619675,1.0926191,103470.0,103460.0,0.51085641]
[1750443620394,1.10228289,103470.0,103460.0,0.51085641]
[1750443620629,0.46610472,103470.0,103460.0,0.41557748]
[1750443620856,1.10228289,103470.0,103460.0,0.41557748]
[1750443621112,0.45644093,103470.0,103460.0,0.41557748]
[1750443621333,1.0926191,103470.0,103460.0,0.41557748]
[1750443621550,1.10228298,103470.0,103460.0,0.41557748]
[1750443621793,0.45644093,103470.0,103460.0,0.41557748]
[1750443622012,1.0926191,103470.0,103460.0,0.41557748]
[1750443622265,1.0926191,103470.0,103460.0,0.24173748]
[1750443622515,0.34,103440.0,103410.0,0.02890219]
[1750443622776,5.21124122,103390.0,103380.0,0.0001]
[1750443623000,0.54313387,103380.0,103370.0,0.0001]
[1750443623235,1.49300609,103380.0,103370.0,0.0001]
[1750443623499,6.93773686,103370.0,103360.0,0.0001]
[1750443623748,6.93773686,103370.0,103320.0,0.0001]
[1750443623749,0.05967726,103330.0,103320.0,0.0001]
[1750443623985,1.02617817,103330.0,103320.0,0.0001]
[1750443624187,1.04553212,103330.0,103320.0,0.0001]
[1750443624403,1.02617817,103330.0,103320.0,0.29910132]
[1750443624611,0.39,103330.0,103320.0,0.29066275]
[1750443624820,1.02617817,103330.0,103320.0,0.33194132]
[1750443625022,1.02617817,103330.0,103320.0,0.3416198]
[1750443625229,1.02617817,103330.0,103320.0,0.35129818]
[1750443625230,0.39,103330.0,103320.0,0.35129818]
[1750443625451,1.02617817,103330.0,103320.0,0.13836796]
[1750443625662,0.34,103330.0,103320.0,0.35129799]
[1750443625870,0.55286747,103350.0,103340.0,0.00124]
[1750443626075,0.97617817,103350.0,103340.0,0.2044525]
[1750443626280,0.98585318,103350.0,103340.0,0.2044525]
[1750443626494,0.22253649,103360.0,103340.0,0.22380543]
[1750443626700,0.27253658,103360.0,103340.0,0.32876049]
[1750443626905,0.61253667,103360.0,103340.0,0.31908436]
[1750443627111,0.34,103360.0,103350.0,0.00967567]
[1750443627325,0.34719417,103360.0,103350.0,0.33958753]
[1750443627535,0.53101845,103360.0,103350.0,0.13639469]
[1750443627746,0.33752,103360.0,103350.0,0.34926254]
[1750443627952,0.33752,103360.0,103350.0,0.35893821]
[1750443628156,0.33952,103360.0,103350.0,0.37098753]
[1750443628364,0.33952,103360.0,103350.0,0.36131186]
[1750443628577,0.38952,103360.0,103350.0,0.36131186]
[1750443628791,0.34919417,103360.0,103350.0,0.1677946]
[1750443629003,0.39919426,103360.0,103350.0,0.17747054]
[1750443629208,1.24621988,103360.0,103350.0,0.09527893]
[1750443629413,1.24621978,103360.0,103350.0,0.10495478]
[1750443629617,1.24621978,103360.0,103350.0,0.09527893]
[1750443629829,0.62939107,103360.0,103350.0,0.09527893]
[1750443630046,0.61971625,103360.0,103350.0,0.09527893]
[1750443630265,1.25589442,103360.0,103350.0,0.11463045]
[1750443630485,1.25589498,103360.0,103350.0,0.09527893]
[1750443630727,1.23654608,103360.0,103350.0,0.09527893]
[1750443630940,0.38752,103360.0,103350.0,0.30814752]
[1750443631230,0.38752,103360.0,103350.0,0.3589382]
[1750443631443,0.38752,103360.0,103350.0,0.5637782]
[1750443631633,0.39719417,103360.0,103350.0,0.5637782]
[1750443631965,0.38752,103360.0,103350.0,0.5637782]
[1750443632730,0.39719408,103360.0,103350.0,0.5637782]
[1750443632940,1.04304651,103360.0,103350.0,0.5637782]
[1750443633144,1.03337234,103360.0,103350.0,0.5637782]
[1750443633381,1.03337225,103360.0,103350.0,0.5637782]
[1750443633613,1.03337225,103360.0,103350.0,0.5335782]
[1750443633811,0.38752,103360.0,103350.0,0.5335782]
[1750443634024,1.02369817,103360.0,103350.0,0.5335782]
[1750443634221,0.97369817,103360.0,103350.0,0.5335782]
[1750443634441,1.02369817,103360.0,103350.0,0.5335782]
[1750443634653,0.38752,103360.0,103350.0,0.5335782]
[1750443634859,1.02369817,103360.0,103350.0,0.5316182]
[1750443635263,1.02369817,103360.0,103350.0,0.5310582]
[1750443635667,0.38752,103360.0,103350.0,0.3274982]
[1750443635868,1.03337234,103360.0,103350.0,0.5310582]
[1750443636070,1.03337234,103360.0,103350.0,0.3274982]
[1750443636071,1.13831664,103360.0,103350.0,0.3274982]
[1750443636275,1.12864219,103360.0,103350.0,0.3274982]
[1750443636444,1.03337234,103360.0,103350.0,0.3274982]
[1750443637055,1.02369817,103360.0,103350.0,0.3274982]
[1750443637459,1.02369817,103360.0,103350.0,0.5320582]
[1750443638294,1.02369817,103360.0,103350.0,0.5308182]
[1750443639844,1.02369817,103360.0,103350.0,0.3274982]
[1750443640061,0.38752,103360.0,103350.0,0.3274982]
[1750443640311,1.02369817,103360.0,103350.0,0.3274982]
[1750443640949,1.02369817,103360.0,103350.0,0.5306182]
[1750443641164,0.38752,103360.0,103350.0,0.5306182]
[1750443641367,1.02369817,103360.0,103350.0,0.5306182]
[1750443642236,0.38752,103360.0,103350.0,0.5306182]
[1750443642460,1.02369817,103360.0,103350.0,0.5306182]